Cogmind - Beta 16.1 @@@ ROGUE MODE // 2026.05.01 @ 10:41:11 Player: SunShine214 Result: Destroyed by YN-4JX(R) with Subdweller Beam Cannon Performance ------------- Evolutions (0) 0 Regions Visited (2) 400 Robots Destroyed (15) 75 Value Destroyed (299) 299 Prototype IDs (0) 0 Alien Tech Used (0) 0 Bonus (0) 0 TOTAL SCORE: 774 Bonus ------- None Cogmind --------- Core Integrity 0/250 Matter 300/300 Energy 100/100 System Corruption 0% Temperature Cool (10) Movement Core (50) Location -10/Subcaves Parts ------- > --- POWER (1) -------- (None) > --- PROPULSION (2) --- (None) > --- UTILITY (2) ------ Visual Processing Unit > --- WEAPON (2) ------- Mining Laser > --- INVENTORY (5) ---- Subdweller Monowheel Cooling System Large Storage Unit Peak State ------------ > --- POWER ------------ Ion Engine > --- PROPULSION ------- Light Treads Light Treads > --- UTILITY ---------- Small Storage Unit Seismic Detector > --- WEAPON ----------- EM Pulse Gun Medium Laser > --- INVENTORY -------- (None) [Rating: 7] Favorites ----------- Power Light Ion Engine Engine Light Ion Engine Propulsion Light Treads Treads Light Treads Flight Unit Flight Unit Utility Seismic Detector Device Seismic Detector Storage Large Storage Unit Processor Visual Processing Unit Weapon Small Laser Energy Gun Small Laser Special Weapon Mining Laser Build | -11 -10 -10 ------- Run | Yrd Mat Sub Slots Evolved . | . . . Power . | . . . Propulsion . | . . . Utility . | . . . Weapon . | . . . Parts Attached 18 | 7 8 3 Power 3 | 1 2 . Engine 3 | 1 2 . Core . | . . . Reactor . | . . . Propulsion 6 | 2 2 2 Treads 2 | 2 . . Leg . | . . . Wheel . | . . . Hover . | . . . Flight 4 | . 2 2 Utility 4 | 2 2 . Device 1 | 1 . . Storage 2 | 1 1 . Processor 1 | . 1 . Hackware . | . . . Protection . | . . . Artifact . | . . . Weapon 5 | 2 2 1 Energy Gun 4 | 2 2 . Energy Cannon . | . . . Ballistic Gun . | . . . Ballistic Cannon . | . . . Launcher . | . . . Special Weapon 1 | . . 1 Impact Weapon . | . . . Slashing Weapon . | . . . Piercing Weapon . | . . . Special Melee Weapon . | . . . Unidentified Prototypes . | . . . Parts Lost 13 | . 7 6 Power 2 | . 1 1 Propulsion 6 | . 2 4 Utility 1 | . . 1 Weapon 4 | . 4 . Highest Loss Streak 6 | . 4 6 To Critical Strikes . | . . . Average Backups 3 | . 4 4 Power . | . . . Propulsion 1 | . 1 1 Utility 1 | . 1 2 Weapon . | . 1 . Tool/Special . | . . . Unused Backups 4 | . 2 2 Power . | . . . Propulsion 1 | . . 1 Utility 3 | . 2 1 Weapon . | . . . Tool/Special . | . . . Average Slot Usage (%) 87 | . 93 78 Engine 12 | . 12 13 Treads 14 | . 24 . Flight 12 | . 3 26 Device 13 | . 14 11 Storage 7 | . 12 . Processor 6 | . 1 14 Energy Gun 13 | . 23 . Special Weapon 4 | . . 11 Peak Build Rating 7 | 7 7 7 Average Rating 6 | 5 6 6 On Entrance 4 | . 7 6 Avg Prop Armor Cover (%) . | . . . Naked Turns . | . . . Heaviest Build 30 | 15 30 5 Greatest Support 40 | 40 40 8 Greatest Overweight (x) 1 | . 1 . Average Overweight (x) . | . . . Largest Inventory Capacity 15 | 8 15 5 Average Capacity 9 | 7 13 5 Most Carried 6 | 1 6 5 Average Carried 3 | . 4 4 Final Capacity 8 | 8 5 5 Final Carried 5 | 1 5 3 Class Distribution -------------------- 80% | Mutant 19% | Scavenger-Mutant Dominant Class ---------------- Mutant | -10/Materials Mutant | -10/Subcaves Resources | -11 -10 -10 ----------- Run | Yrd Mat Sub Matter Collected 360 | 270 80 10 Remotely . | . . . Salvage Created 434 | 173 261 . Parts 35 | 16 19 . Haulers Intercepted . | . . . Recyclers Shooed . | . . . Parts Field Recycled . | . . . Retrieved Matter . | . . . Parts Self-Destructed . | . . . Prevented . | . . . Parts Restored . | . . . Kills | -11 -10 -10 ------- Run | Yrd Mat Sub Combat Hostiles Destroyed 7 | . 7 . Guns 6 | . 6 . Classes Destroyed 7 | 3 4 . Worker 1 | 1 . . Builder 1 | . 1 . Tunneler 4 | 4 . . Recycler 1 | 1 . . Watcher 1 | . 1 . Swarmer 2 | . 2 . Grunt 5 | . 5 . Best Kill Streak 2 | 2 2 . Combat Bots Only 2 | . 2 . Max Kills in Single Turn 1 | 1 1 . Gunslinging . | . . . Exploded . | . . . Melee . | . . . Uniques/NPCs Destroyed . | . . . Combat | -11 -10 -10 -------- Run | Yrd Mat Sub Hostile Shots Fired 114 | . 92 22 Missed 42 | . 31 11 Hits 72 | . 61 11 Projectile 72 | . 61 11 AOE 1 | . 1 . Critical Strikes 2 | . 2 . Damage Taken 1095 | . 849 246 Core 255 | . 160 95 Absorbed by Shields . | . . . Core Remaining (%) 100 | 100 . . Volleys Fired 98 | 12 51 35 Largest 2 | 2 2 1 Hottest 100 | 90 90 100 Shots Fired 146 | 24 87 35 Gun 111 | 24 87 . Cannon . | . . . Launcher . | . . . Special 35 | . . 35 Kinetic . | . . . Thermal 118 | 12 71 35 Explosive . | . . . Electromagnetic 28 | 12 16 . Robot Hit Streak 9 | 5 9 1 Robot Miss Streak 4 | 2 4 . Penetration Max . | . . . Secondary Targets 1 | . 1 . Max Gunslinging Chain 1 | . 1 . Shots Hit Robots 62 | 13 48 1 Core Hits 29 | 7 22 . Critical Kills . | . . . Critical Parts Destroyed . | . . . Critical Strikes 3 | 2 1 . Burn 3 | 2 1 . Melee Attacks . | . . . Impact . | . . . Slashing . | . . . Piercing . | . . . Sneak Attacks . | . . . Combat Hostiles . | . . . Follow-up Attacks . | . . . Damage Inflicted 905 | 177 704 24 Guns 771 | 171 600 . Cannons . | . . . Explosions 104 | . 104 . Melee . | . . . Ramming 6 | 6 . . Kinetic . | . . . Thermal 639 | 89 526 24 Explosive . | . . . Electromagnetic 260 | 82 178 . Impact . | . . . Slashing . | . . . Piercing . | . . . Highest Corruption . | . . . Average Corruption . | . . . Corruption Purged . | . . . Corruption Blocked . | . . . Overload Shots . | . . . Overflow Damage . | . . . Projectiles . | . . . Explosions . | . . . Melee . | . . . Knockbacks . | . . . Impact . | . . . Kinetic . | . . . Secondary . | . . . Self-Inflicted Damage 51 | . 51 . Shots 1 | . 1 . Rammed . | . . . Targets Rammed 1 | 1 . . Kicked . | . . . Crushed 1 | 1 . . Highest Temperature 224 | 180 224 . Average Temperature 77 | 61 82 . Received Heat Transfer 447 | . 390 57 Siege Activations . | . . . Martial Activations . | . . . Shielding Activations . | . . . Robots Disrupted 1 | . 1 . Combat Hostiles 1 | . 1 . Robots Corrupted . | . . . Combat Hostiles . | . . . Parts Fried . | . . . Impact Corruptions . | . . . Robots Melted 1 | . 1 . Combat Hostiles 1 | . 1 . Parts Melted 2 | . 2 . Heat Transferred 1832 | 407 1375 50 Parts Sabotaged . | . . . Parts Stolen . | . . . Parts Stripped . | . . . Power Chain Reactions 2 | . 2 . Alert | -11 -10 -10 ------- Run | Yrd Mat Sub Maximum Alert Level . | . . . Low Security (%) 100 | 100 100 . Level 1 . | . . . Level 2 . | . . . Level 3 . | . . . Level 4 . | . . . Level 5 . | . . . High Security . | . . . Max Security . | . . . Peak Influence 70 | 10 70 . Initial . | . . . Average 20 | 2 25 . Influence Increases 310 | 30 280 . Destroy 0b10 Robot/C 140 | . 140 . Destroy 0b10 Robot/NC 40 | 30 10 . Destroy Leader 22 | . 22 . Successful Hack 13 | . 13 . Disable Machine 60 | . 60 . Destroy Structure 5 | . 5 . Lose Combat Pursuer 30 | . 30 . Influence Decreases 310 | 30 280 . Time Decay 256 | 30 226 . Lost Part 54 | . 54 . Squads Dispatched 2 | . 2 . Investigation 1 | . 1 . Extermination . | . . . Reinforcement 1 | . 1 . Assault . | . . . Garrison . | . . . Intercept . | . . . Searches Triggered . | . . . Construction Impeded . | . . . Haulers Reinforced . | . . . Active Scanning Responses . | . . . Cargo Convoy Interrupts . | . . . Stealth | -11 -10 -10 --------- Run | Yrd Mat Sub Distress Signals 1 | . 1 . Communications Jammed . | . . . Distress Signals . | . . . Times Spotted 34 | . 26 8 Peak Tracking Total 7 | . 7 5 Tactical Retreats 7 | . 4 3 Traps | -11 -10 -10 ------- Run | Yrd Mat Sub Traps Triggered . | . . . Indirectly . | . . . Trap Hack Attempts . | . . . Triggered . | . . . Disarmed . | . . . Reprogrammed . | . . . Reused . | . . . Traps Extracted . | . . . Installed . | . . . Triggered . | . . . Machines | -11 -10 -10 ---------- Run | Yrd Mat Sub Machines Disabled 4 | . 4 . Max in Single Turn 3 | . 3 . Machines Repaired . | . . . Machines Dismantled . | . . . Machines Sabotaged . | . . . Overloaded Fab Kills . | . . . Hacking | -11 -10 -10 --------- Run | Yrd Mat Sub Machines Accessed 3 | . 3 . Terminals 3 | . 3 . Fabricators . | . . . Repair Stations . | . . . Recycling Units . | . . . Scanalyzers . | . . . Garrison Access . | . . . Total Hacks 11 | . 11 . Successful 4 | . 4 . Failed 7 | . 7 . Catastrophic . | . . . Database Lockouts . | . . . Manual 1 | . 1 . Terminals 11 | . 11 . Fabricators . | . . . Repair Stations . | . . . Recycling Units . | . . . Scanalyzers . | . . . Garrison Access . | . . . Terminal Hacks 4 | . 4 . Dispatch Records 1 | . 1 . Hauler Manifests 1 | . 1 . Registered Components 1 | . 1 . Zone Layout 1 | . 1 . Fabricator Hacks . | . . . Repair Station Hacks . | . . . Recycling Unit Hacks . | . . . Scanalyzer . | . . . Garrison Access Hacks . | . . . Unauthorized Hacks . | . . . Terminals . | . . . Fabricators . | . . . Repair Stations . | . . . Recycling Units . | . . . Scanalyzers . | . . . Garrison Access . | . . . Data Cores Recovered . | . . . Used . | . . . Hacking Detections 3 | . 3 . Full Trace Events 1 | . 1 . Feedback Events . | . . . Feedback Blocked . | . . . Robot Schematics Acquired . | . . . Robots Built . | . . . Authchips . | . . . Time . | . . . Total Robot Build Rating . | . . . Part Schematics Acquired . | . . . Parts Built . | . . . Authchips . | . . . Time . | . . . Total Part Build Rating . | . . . Part Studies Acquired . | . . . Parts Repaired . | . . . Time . | . . . Parts Recycled . | . . . Recycled Matter . | . . . Retrieved Matter . | . . . Retrieved Components . | . . . Parts Scanalyzed . | . . . Part Schematics Acquired . | . . . Parts Damaged . | . . . Bothacking | -11 -10 -10 ------------ Run | Yrd Mat Sub Used RIF Installer . | . . . Robots Hacked . | . . . Non-combat . | . . . Combat . | . . . Robot Hacks Applied . | . . . Relay Couplers Released . | . . . Fabnet Peak Effective % . | . . . Robots Rewired . | . . . Allies Hacked . | . . . Hacks Repelled . | . . . Allies | -11 -10 -10 -------- Run | Yrd Mat Sub Total Allies . | . . . Largest Group . | . . . Highest-Rated Group . | . . . Highest-Rated Ally . | . . . Total Orders . | . . . Ally Attacks . | . . . Total Damage . | . . . Kills . | . . . Allies Corrupted . | . . . Allies Melted . | . . . Intel | -11 -10 -10 ------- Run | Yrd Mat Sub Active Infowar (turns) 1244 | 52 699 493 Optics 560 | . 67 493 Seismic 1164 | 52 699 413 Robot Analysis Total . | . . . Derelict Logs Recovered 2 | . . 2 Drone Launches . | . . . Drone Recoveries . | . . . Exploration | -11 -10 -10 ------------- Run | Yrd Mat Sub Turns Passed 1372 | 180 699 493 Spaces Moved 1428 | 86 433 909 Core 5 | 5 . . Treads 347 | 81 266 . Legs . | . . . Wheels . | . . . Hover . | . . . Flight 1076 | . 167 909 Fastest Speed 37 | 50 37 37 Average Speed 67 | 153 113 37 Slowest Speed 240 | 160 240 40 Overloaded Moves . | . . . Propulsion Burnouts . | . . . Robots Hopped 8 | . 2 6 Potential Cave-ins . | . . . Cave-ins Triggered . | . . . Exploration Rate (%) 37 | 5 64 44 Regions Visited 2 Branch Regions 1 Pre-discovered Areas 1 | . . 1 Known Exits Taken . | . . . Unknown Exits Taken 2 | 1 1 . Scrap Searched . | . . . Spaces Dug . | . . . Terrain Destroyed 4 | . 4 . Melee . | . . . Projectile . | . . . AOE 4 | . 4 . Terrain Rammed . | . . . Walls Destroyed . | . . . Machines Disabled . | . . . Actions | -11 -10 -10 --------- Run | Yrd Mat Sub Total 1608 | 106 550 952 Wait 58 | . 48 10 Move 1412 | 85 428 899 Hop 6 | . 2 4 Pick Up 9 | 1 7 1 Fast Attach 10 | 7 3 . Attach 6 | . 3 3 Detach 1 | . 1 . Swap 3 | . 3 . Drop 4 | . 4 . Fire 98 | 12 51 35 Melee . | . . . Ram . | . . . Kick . | . . . Crush 1 | 1 . . Escape Stasis . | . . . Rewire . | . . . Trap . | . . . Miscellaneous . | . . . Route ------- -11/Scrapyard -10/Materials (discovered 3 exits: [*Mat] / [*Min] / [*Sub]) -10/Subcaves History --------- Turn | Location | Event 3 | -11/Scrapyard | Discovered new exit (range 15) 181 | -11/Scrapyard | Entered Materials 303 | -10/Materials | Build established: Mutant 570 | -10/Materials | Discovered new exit (range 14) 774 | -10/Materials | Discovered new exit (range 7) 781 | -10/Materials | Derelicts attacked the area 808 | -10/Materials | Core integrity fell below 50% 838 | -10/Materials | Lost 4 parts (2n2w) 853 | -10/Materials | Discovered new exit (range 12) 880 | -10/Materials | Entered Subcaves 882 | -10/Subcaves | Learned location of Zion (-7) 906 | -10/Subcaves | Learned 2 Materials zone layouts 953 | -10/Subcaves | Ambushed by Subdwellers from Twisted Machinery 969 | -10/Subcaves | Shifting Twisted Machinery released Battle Rifle 1035 | -10/Subcaves | Disturbed a concealed Subdweller 1331 | -10/Subcaves | Shifting Twisted Machinery released Sub. Monowheel 1347 | -10/Subcaves | Core integrity fell below 20% 1373 | -10/Subcaves | Destroyed by YN-4JX(R) with Subdweller Beam Cannon Last Messages --------------- GOAL=ESCAPE 00882_ Acquired derelict log, extracted data. World map updated: -7/Zion. 00906_ Acquired derelict log, extracted data. Data stored: Materials zone layouts (x2). Battle Rifle falls loose from the Twisted Machinery. 01035_ DQ-1QE(R) angrily emerges from the Twisted Machinery. 01050_ Acquired 10 matter. 01099_ N3-UE0(u) builds Twisted Machinery. 01253_ 3S-F2U(u) builds Twisted Machinery. 01293_ Seismic Detector destroyed. 01319_ Flight Unit destroyed. Sub. Monowheel falls loose from the Twisted Machinery. 01337_ Acquired Sub. Monowheel. 01342_ Flight Unit destroyed. 01365_ Lgt. Ion Engine destroyed. 01373_ Flight Unit destroyed. Map ----- +----------------------------------------------------+ | ?????????????????????????# ??### #????????? | | ?????????????????????????# ### #????????? | | ????????????????????????## #????????? | | ????????????????????????# #????????? | | ????????????????????????###### #????????? | | ???????????????????????????### #????????? | | ????????????????????????##?# ####????????? | | ???????????????????????## ## #####???????? | | ??????????????????????## #### #???????? | | ?????????????????????## ### #???????? | | ?????????????????????# #???????? | | ?????????????????????# ####???????? | | ????????????? ??##??## ##??????????? | | ????????????? ## ##### ### ##??????????? | | ????????????? ### ??## #??????????? | | ?????????????? ?#??##R R #####??????????? | | ????????????????? #??## R###??????????????? | | ????????????????????# ### #????????????????? | | ???????????????????## #????????????????? | | ???????????????????# ##????????????????? | | ??????????????????# ## ##?????????????????? | | ?????????????????# ???# #??????????????????? | | ?????????????????#????## #??????????????????? | | ?????????????????????## #??????????????????? | | ????????????????????## ###??????????????????? | | ????????????????????# @###????????????????????? | | ????????????????????# #??????????????????????? | | ## #?????????????## ##?????????????????????? | | # ## ?????????# #####?????????????????? | | # ?????????## #????? ???????????? | | ?# #??????####R ### #???????????? | | ??# "##????## #????????????? | | ???# "" #??## ##????????????? | | ??## "" ??## ##?????????????? | | ??# " ??## " #??????????????? | | ??# "" "??## "" " #????????????? | | #### " #### " "" ?????????? | | ## """ "" ### """ ????????? | | " """" # ## #??#" " ## #????????? | | " """ ##### ##???""" """"#???????????? | | #" " [ ## " # ""#?????" " "#???????????? | | #" ###" #### "##??????""???"????????????? | | # ""##?#"##""## # "##????????????????????????? | | # "###" "$""# #????????????????????????? | | " #""""# # #????????????????????????? | | " ##"&## # #????????????????????????? | | # #### ########????????????????????????? | | #### ##???????????????????????????????? | | ##??### #####????????????????????????????????? | | #####?????###????????????????????????????????????? | +----------------------------------------------------+ Best States ------------- Heat Dissipation 25 Energy Generation 10 Energy Capacity 250 Matter Stores 300 Matter Capacity 300 Sight Range 18 Terrain Scan Density 10 Evasion (%) 62 Recoil Reduction 2 Item Schematics ----------------- None Robot Schematics ------------------ None Fabricated ------------ Nothing Repaired ---------- Nothing Studied --------- None Alien Tech Used ----------------- None Achievements -------------- None Challenges ------------ None Game ------ Seed SkeletonTrapDrillbomb Manual? 0 Play Time 00:15:55 Cumulative 162.6 hours Start 2026.05.01 @ 10:28:20 End 2026.05.01 @ 10:41:11 Sessions 1 Manual Loads 0 Difficulty Rogue Special Mode None Game No. 251 Rogue 251 Adventurer 0 Explorer 0 Win Type - Total 1 Types 1/0/0/0/0/0/0/0/0/0 Lore% 56 Gallery% 57 Achievement% 43 Wizard Run 0 Options --------- Layout 1 ASCII 0 Keyboard 1 Movement Arrows Keybinds 0 Fullscreen 1 Font 24/Smallcaps Map View 50x35 Zoom Use 0% Tactical HUD 1 Map Filters NONE Filters NONE Steam 1 RUN: f1783485-5dee-43d5-a3ab-8678362e83d7